Cogmind - Beta 15 @@@ ROGUE MODE // 2025.05.10 @ 12:42:07 Player: MoYuYu Result: Destroyed by Y-54 Guardian with Gatling Laser Performance ------------- Evolutions (4) 2000 Regions Visited (6) 1200 Robots Destroyed (46) 230 Value Destroyed (1647) 1647 Prototype IDs (1) 20 Alien Tech Used (0) 0 Bonus (493) 493 TOTAL SCORE: 5590 Bonus ------- Follower Combat Kills 493 Cogmind --------- Core Integrity 0/850 Matter 255/300 Energy 100/100 System Corruption 0% Temperature Cool (6) Movement Core (250) Ox4 Location -6/Extension Parts ------- > --- POWER (1) -------- Fusion Compressor > --- PROPULSION (6) --- Light Treads > --- UTILITY (6) ------ Visual Processing Unit Improved Signal Interpreter > --- WEAPON (2) ------- Plasma Rifle Thermic Laser > --- INVENTORY (5) ---- Fission Core Layered Medium Armor Plating Gatling Laser Plasma Cutter Peak State ------------ > --- POWER ------------ Fission Core > --- PROPULSION ------- Light Treads Armored Treads Aluminum Leg Improved Aluminum Leg Carbon-fiber Leg Carbon-fiber Leg > --- UTILITY ---------- Improved Heat Sink Advanced Heat Sink Medium Storage Unit Improved Trap Scanner Improved Signal Interpreter Layered Medium Armor Plating > --- WEAPON ----------- Particle Gun Pulse Rifle > --- INVENTORY -------- Light Nuclear Core Fission Core Light Treads Aerolev Unit Gravmag System Layered Medium Armor Plating Thermal Shield Medium Laser Improved Grenade Launcher Plasma Cutter [Rating: 48] Favorites ----------- Power Improved Ion Engine Engine Improved Ion Engine Power Core Light Nuclear Core Propulsion Improved Aluminum Leg Treads Armored Treads Leg Improved Aluminum Leg Wheel Compact Wheel Hover Unit Aerolev Unit Utility Improved Signal Interpreter Device Improved Heat Sink Storage Medium Storage Unit Processor Improved Signal Interpreter Protection Medium Armor Plating Weapon Heavy EM Pulse Gun Energy Gun Heavy EM Pulse Gun Ballistic Gun Light Assault Rifle Launcher Improved Grenade Launcher Special Weapon Plasma Cutter Slashing Weapon Ripper Build | -11 -10 -9 -8 -7 -6 -6 ------- Run | Yrd Mat Mat Mat Fac Fac Ext Slots Evolved 8 | . . 2 2 2 2 . Power . | . . . . . . . Propulsion 4 | . . 1 1 1 1 . Utility 4 | . . 1 1 1 1 . Weapon . | . . . . . . . Parts Attached 61 | 6 5 12 7 5 15 11 Power 7 | 1 . 1 1 1 1 2 Engine 3 | 1 . 1 . 1 . . Core 4 | . . . 1 . 1 2 Reactor . | . . . . . . . Propulsion 22 | 2 2 6 2 1 6 3 Treads 4 | . . . 2 1 . 1 Leg 15 | 2 2 6 . . 4 1 Wheel 1 | . . . . . . 1 Hover 2 | . . . . . 2 . Flight . | . . . . . . . Utility 15 | 1 2 3 2 2 4 1 Device 5 | . 1 . . 1 3 . Storage 2 | 1 1 . . . . . Processor 3 | . . 1 1 . . 1 Hackware . | . . . . . . . Protection 5 | . . 2 1 1 1 . Artifact . | . . . . . . . Weapon 17 | 2 1 2 2 1 4 5 Energy Gun 10 | 1 1 2 2 1 1 2 Energy Cannon . | . . . . . . . Ballistic Gun 2 | 1 . . . . 1 . Ballistic Cannon . | . . . . . . . Launcher 1 | . . . . . 1 . Special Weapon 2 | . . . . . 1 1 Impact Weapon . | . . . . . . . Slashing Weapon 2 | . . . . . . 2 Piercing Weapon . | . . . . . . . Special Melee Weapon . | . . . . . . . Unidentified Prototypes 1 | . . . . . 1 . Corrupted Parts 1 | . . . 1 . . . System Corruption 1 | . . . 1 . . . Parts Lost 26 | . . 1 . 1 18 6 Power 2 | . . . . . 1 1 Propulsion 12 | . . . . . 8 4 Utility 5 | . . 1 . . 4 . Weapon 7 | . . . . 1 5 1 Highest Loss Streak 17 | . . 1 . 1 17 3 To Critical Strikes 1 | . . . . . 1 . Average Backups 7 | 2 6 9 9 9 9 4 Power 1 | . 1 1 1 1 1 1 Propulsion 2 | 1 3 4 4 3 2 . Utility . | . . . . . 1 1 Weapon 1 | . 1 2 2 3 2 . Tool/Special . | . . . . . . . Unused Backups 12 | . 1 2 1 2 1 5 Power 4 | . . 1 . 1 1 1 Propulsion 2 | . 1 1 . . . . Utility 3 | . . . 1 . . 2 Weapon 3 | . . . . 1 . 2 Tool/Special . | . . . . . . . Average Slot Usage (%) 79 | . 88 94 99 99 91 28 Engine 5 | . 14 11 7 4 3 . Core 1 | . . . 1 2 1 2 Treads 6 | . . . 9 15 12 . Leg 19 | . 28 31 27 23 22 . Hover 1 | . . . . . . 5 Device 9 | . 3 11 8 14 18 2 Storage 6 | . 14 11 9 7 6 . Processor 6 | . . . 9 7 6 7 Protection 5 | . . 7 8 7 5 . Energy Gun 12 | . 14 22 18 14 11 1 Peak Build Rating 48 | 6 10 19 27 32 48 25 Average Rating 22 | 4 7 14 24 30 39 16 On Entrance 15 | . 6 10 18 27 32 18 Naked Turns . | . . . . . . . Heaviest Build 39 | 13 20 31 31 35 39 17 Greatest Support 56 | 20 20 39 39 39 56 20 Greatest Overweight (x) 4 | 1 . 1 . . 1 4 Average Overweight (x) . | . . . . . . . Largest Inventory Capacity 10 | 8 10 10 10 10 10 10 Average Capacity 8 | 7 9 10 10 10 10 5 Most Carried 10 | 5 10 10 10 10 10 5 Average Carried 7 | 3 6 9 9 9 9 4 Final Capacity 10 | 8 10 10 10 10 10 5 Final Carried 10 | 5 10 10 10 10 4 4 Class Distribution -------------------- 71% | Mutant 28% | Scavenger-Mutant Dominant Class ---------------- Mutant | -10/Materials Scavenger-Mutant | -9/Materials Mutant | -8/Materials Mutant | -7/Factory Scavenger-Mutant | -6/Factory Mutant | -6/Extension Resources | -11 -10 -9 -8 -7 -6 -6 ----------- Run | Yrd Mat Mat Mat Fac Fac Ext Matter Collected 885 | 241 70 75 130 75 120 174 Remotely . | . . . . . . . Salvage Created 1935 | . 80 194 534 175 754 198 Parts 91 | . 9 7 31 5 36 3 Haulers Intercepted . | . . . . . . . Recyclers Shooed 7 | . . 1 1 . 5 . Parts Field Recycled . | . . . . . . . Retrieved Matter . | . . . . . . . Parts Self-Destructed . | . . . . . . . Prevented . | . . . . . . . Kills | -11 -10 -9 -8 -7 -6 -6 ------- Run | Yrd Mat Mat Mat Fac Fac Ext Combat Hostiles Destroyed 38 | . 2 4 12 5 14 1 Melee 1 | . . . . . . 1 Guns 29 | . 2 3 12 4 8 . AOE 7 | . . 1 . . 6 . Classes Destroyed 9 | . 1 1 2 . 5 . Worker 3 | . . . . . 3 . Builder 2 | . . . . . 2 . Recycler 3 | . . . . . 2 1 Swarmer 10 | . . . 4 2 4 . Grunt 18 | . 2 3 5 2 6 . Duelist 1 | . . 1 . . . . Sentry 6 | . . . 3 1 2 . Hunter 1 | . . . . . 1 . Programmer 1 | . . . . . 1 . Butcher 1 | . . . . . . 1 Best Kill Streak 11 | . 2 2 4 2 11 1 Combat Bots Only 6 | . 2 2 4 2 6 1 Max Kills in Single Turn 4 | . 1 1 1 1 4 1 Gunslinging . | . . . . . . . Exploded 1 | . . 1 . . 1 . Melee 1 | . . . . . . 1 Uniques/NPCs Destroyed . | . . . . . . . Combat | -11 -10 -9 -8 -7 -6 -6 -------- Run | Yrd Mat Mat Mat Fac Fac Ext Hostile Shots Fired 647 | . 15 21 62 66 302 181 Missed 240 | . 2 3 21 16 113 85 Hits 407 | . 13 18 41 50 189 96 Melee 4 | . . 4 . . . . Projectile 403 | . 13 14 41 50 189 96 Critical Strikes 7 | . . 1 2 . 4 . Damage Taken 4536 | . 170 330 520 552 2083 881 Core 996 | . 20 61 44 11 353 507 Absorbed by Shields 152 | . . . . . . 152 Ignored by Resistances 17 | . . . . . . 17 Regen/Repaired (Parts) 20 | . . . 20 . . . Core Remaining (%) 93 | 100 92 84 92 98 . . Volleys Fired 146 | . 14 20 39 19 53 1 Largest 2 | . 2 2 2 2 2 2 Hottest 160 | . 70 110 110 128 128 160 Shots Fired 269 | . 25 40 78 38 86 2 Gun 260 | . 25 40 78 38 77 2 Cannon . | . . . . . . . Launcher 8 | . . . . . 8 . Special 1 | . . . . . 1 . Kinetic 16 | . 11 . . . 5 . Thermal 182 | . 14 20 39 34 73 2 Explosive 8 | . . . . . 8 . Electromagnetic 63 | . . 20 39 4 . . Robot Hit Streak 18 | . 13 12 15 18 16 1 Robot Miss Streak 5 | . 4 2 5 4 3 1 Penetration Max . | . . . . . . . Secondary Targets 2 | . . 1 . . 1 . Max Gunslinging Chain 1 | . . 1 . . 1 . Shots Hit Robots 195 | . 17 28 48 30 65 7 Core Hits 105 | . 6 9 25 12 51 2 Critical Kills . | . . . . . . . Critical Parts Destroyed . | . . . . . . . Critical Strikes 8 | . . 2 1 1 4 . Burn 8 | . . 2 1 1 4 . Melee Attacks 19 | . . . . . . 19 Impact . | . . . . . . . Slashing 19 | . . . . . . 19 Piercing . | . . . . . . . Sneak Attacks 3 | . . . . . . 3 Combat Hostiles 1 | . . . . . . 1 Follow-up Attacks . | . . . . . . . Damage Inflicted 4046 | . 185 473 697 525 1808 358 Guns 2773 | . 185 373 696 525 973 21 Cannons . | . . . . . . . Explosions 935 | . . 100 . . 835 . Melee 337 | . . . . . . 337 Ramming 1 | . . . 1 . . . Kinetic 155 | . 72 . . . 83 . Thermal 2060 | . 113 277 294 465 890 21 Explosive 835 | . . . . . 835 . Electromagnetic 658 | . . 196 402 60 . . Impact . | . . . . . . . Slashing 337 | . . . . . . 337 Piercing . | . . . . . . . Highest Corruption 1 | . . . 1 . . . Average Corruption 1 | . . . 1 . . . Corruption Purged . | . . . . . . . Corruption Blocked . | . . . . . . . Overload Shots . | . . . . . . . Overflow Damage 30 | . . 2 . . 28 . Projectiles . | . . . . . . . Explosions 30 | . . 2 . . 28 . Melee . | . . . . . . . Knockbacks . | . . . . . . . Impact . | . . . . . . . Kinetic . | . . . . . . . Secondary . | . . . . . . . Self-Inflicted Damage 140 | . . 52 . . 88 . Shots 6 | . . 2 . . 4 . Rammed . | . . . . . . . Targets Rammed 1 | . . . 1 . . . Kicked 1 | . . . 1 . . . Crushed . | . . . . . . . Highest Temperature 257 | . 257 9 27 15 22 48 Average Temperature 46 | . 112 4 13 6 5 27 Received Heat Transfer 1463 | . 96 84 252 168 630 233 Siege Activations . | . . . . . . . Martial Activations . | . . . . . . . Shielding Activations . | . . . . . . . Robots Disrupted . | . . . . . . . Combat Hostiles . | . . . . . . . Robots Corrupted . | . . . . . . . Combat Hostiles . | . . . . . . . Parts Fried . | . . . . . . . Impact Corruptions . | . . . . . . . Robots Melted 1 | . . . . 1 . . Combat Hostiles 1 | . . . . 1 . . Parts Melted 15 | . 1 1 1 8 4 . Heat Transferred 5565 | . 333 816 888 1147 2331 50 Parts Sabotaged . | . . . . . . . Parts Stolen . | . . . . . . . Parts Stripped . | . . . . . . . Power Chain Reactions 2 | . . 2 . . . . Alert | -11 -10 -9 -8 -7 -6 -6 ------- Run | Yrd Mat Mat Mat Fac Fac Ext Maximum Alert Level 1 | . . . . . . 1 Low Security (%) 84 | 100 100 100 100 100 100 38 Level 1 15 | . . . . . . 61 Level 2 . | . . . . . . . Level 3 . | . . . . . . . Level 4 . | . . . . . . . Level 5 . | . . . . . . . High Security . | . . . . . . . Max Security . | . . . . . . . Peak Influence 325 | . 40 65 85 75 163 325 Initial 34 | . . 3 . 16 16 34 Average 65 | . 12 13 33 24 55 172 Influence Increases 1863 | . 58 130 299 145 426 805 Destroy 0b10 Robot/C 1040 | . 40 80 240 100 280 300 Destroy 0b10 Robot/NC 45 | . . . . . 35 10 Destroy Leader 212 | . 10 10 50 30 70 42 Allied During Kill 78 | . . . . . . 78 Successful Hack 45 | . 8 . 7 . 3 27 Disable Machine 75 | . . 30 . . . 45 Destroy Structure 68 | . . 10 2 . 38 18 Partial Spotted 15 | . . . . . . 15 Lose Combat Pursuer 285 | . . . . 15 . 270 Influence Decreases 1589 | . 48 140 263 146 391 601 Entered New Map 82 | . . 7 . 20 19 36 Time Decay 1037 | . 48 123 263 116 192 295 Lost Part 250 | . . 10 . 10 180 50 Lost Ally 220 | . . . . . . 220 Squads Dispatched 8 | . . 1 . 2 2 3 Investigation 4 | . . 1 . . . 3 Extermination 1 | . . . . 1 . . Reinforcement 2 | . . . . 1 1 . Assault . | . . . . . . . Garrison 1 | . . . . . 1 . Intercept . | . . . . . . . Searches Triggered . | . . . . . . . Construction Impeded . | . . . . . . . Haulers Reinforced . | . . . . . . . Active Scanning Responses . | . . . . . . . Cargo Convoy Interrupts . | . . . . . . . Stealth | -11 -10 -9 -8 -7 -6 -6 --------- Run | Yrd Mat Mat Mat Fac Fac Ext Distress Signals 7 | . . . 4 . . 3 Communications Jammed . | . . . . . . . Distress Signals . | . . . . . . . Times Spotted 99 | . 6 5 23 10 18 37 Peak Tracking Total 12 | . 3 3 6 3 7 12 Tactical Retreats 10 | . . . . 1 . 9 Traps | -11 -10 -9 -8 -7 -6 -6 ------- Run | Yrd Mat Mat Mat Fac Fac Ext Traps Triggered 2 | . . . . . . 2 Indirectly . | . . . . . . . Trap Hack Attempts . | . . . . . . . Triggered . | . . . . . . . Disarmed . | . . . . . . . Reprogrammed . | . . . . . . . Reused . | . . . . . . . Traps Extracted . | . . . . . . . Installed . | . . . . . . . Triggered . | . . . . . . . Machines | -11 -10 -9 -8 -7 -6 -6 ---------- Run | Yrd Mat Mat Mat Fac Fac Ext Machines Disabled 5 | . . 2 . . . 3 Max in Single Turn 1 | . . 1 . . . 1 Machines Repaired . | . . . . . . . Machines Dismantled 2 | . . . . . . 2 Machines Sabotaged . | . . . . . . . Overloaded Fab Kills . | . . . . . . . Hacking | -11 -10 -9 -8 -7 -6 -6 --------- Run | Yrd Mat Mat Mat Fac Fac Ext Machines Accessed 18 | . 2 2 2 1 2 9 Terminals 17 | . 2 2 1 1 2 9 Fabricators . | . . . . . . . Repair Stations 1 | . . . 1 . . . Recycling Units . | . . . . . . . Scanalyzers . | . . . . . . . Garrison Access . | . . . . . . . Total Hacks 41 | . 5 4 5 1 5 21 Successful 14 | . 3 . 3 . 2 6 Failed 27 | . 2 4 2 1 3 15 Catastrophic 4 | . 1 1 . . . 2 Database Lockouts . | . . . . . . . Manual 16 | . 5 4 . 1 3 3 Terminals 39 | . 5 4 3 1 5 21 Fabricators . | . . . . . . . Repair Stations 2 | . . . 2 . . . Recycling Units . | . . . . . . . Scanalyzers . | . . . . . . . Garrison Access . | . . . . . . . Terminal Hacks 8 | . 1 . 1 . 1 5 Open Door 6 | . . . . . 1 5 Level Access Points 1 | . 1 . . . . . Branch Access Points 1 | . . . 1 . . . Fabricator Hacks . | . . . . . . . Repair Station Hacks 2 | . . . 2 . . . Scan Component 1 | . . . 1 . . . Repair 1 | . . . 1 . . . Recycling Unit Hacks . | . . . . . . . Scanalyzer . | . . . . . . . Garrison Access Hacks . | . . . . . . . Unauthorized Hacks 4 | . 2 . . . 1 1 Terminals 4 | . 2 . . . 1 1 Botnet 4 | . 2 . . . 1 1 Fabricators . | . . . . . . . Repair Stations . | . . . . . . . Recycling Units . | . . . . . . . Scanalyzers . | . . . . . . . Garrison Access . | . . . . . . . Data Cores Recovered . | . . . . . . . Used . | . . . . . . . Hacking Detections 16 | . 2 2 2 1 1 8 Full Trace Events 4 | . . 1 . . . 3 Feedback Events . | . . . . . . . Feedback Blocked . | . . . . . . . Robot Schematics Acquired . | . . . . . . . Robots Built . | . . . . . . . Authchips . | . . . . . . . Time . | . . . . . . . Total Robot Build Rating . | . . . . . . . Part Schematics Acquired . | . . . . . . . Parts Built . | . . . . . . . Authchips . | . . . . . . . Time . | . . . . . . . Total Part Build Rating . | . . . . . . . Parts Repaired 1 | . . . 1 . . . Time 38 | . . . 38 . . . Parts Recycled . | . . . . . . . Recycled Matter . | . . . . . . . Retrieved Matter . | . . . . . . . Retrieved Components . | . . . . . . . Parts Scanalyzed . | . . . . . . . Part Schematics Acquired . | . . . . . . . Parts Damaged . | . . . . . . . Bothacking | -11 -10 -9 -8 -7 -6 -6 ------------ Run | Yrd Mat Mat Mat Fac Fac Ext Used RIF Installer . | . . . . . . . Robots Hacked . | . . . . . . . Non-combat . | . . . . . . . Combat . | . . . . . . . Robot Hacks Applied . | . . . . . . . Relay Couplers Released . | . . . . . . . Fabnet Peak Effective % . | . . . . . . . Robots Rewired 3 | . . . . . . 3 Allies Hacked . | . . . . . . . Hacks Repelled . | . . . . . . . Allies | -11 -10 -9 -8 -7 -6 -6 -------- Run | Yrd Mat Mat Mat Fac Fac Ext Total Allies 11 | . . . . . . 11 Largest Group 7 | . . . . . . 7 Highest-Rated Group 336 | . . . . . . 336 Highest-Rated Ally 159 | . . . . . . 159 Total Orders . | . . . . . . . Ally Attacks 81 | . . . . . . 81 Total Damage 2608 | . . . . . . 2608 Kills 15 | . . . . . . 15 Allies Corrupted . | . . . . . . . Allies Melted 1 | . . . . . . 1 Intel | -11 -10 -9 -8 -7 -6 -6 ------- Run | Yrd Mat Mat Mat Fac Fac Ext Active Infowar (turns) 508 | . . . . . 401 107 Optics 107 | . . . . . . 107 Traps 401 | . . . . . 401 . Robot Analysis Total . | . . . . . . . Derelict Logs Recovered . | . . . . . . . Drone Launches . | . . . . . . . Drone Recoveries . | . . . . . . . Exploration | -11 -10 -9 -8 -7 -6 -6 ------------- Run | Yrd Mat Mat Mat Fac Fac Ext Turns Passed 2989 | 53 194 384 779 367 477 735 Spaces Moved 2178 | 37 114 236 455 243 237 856 Core 79 | 10 . . . . . 69 Treads 22 | . . . . . 2 20 Legs 1290 | 27 114 236 455 243 200 15 Wheels . | . . . . . . . Hover 787 | . . . . . 35 752 Flight . | . . . . . . . Fastest Speed 50 | 50 120 120 120 120 51 50 Average Speed 94 | 104 120 122 120 120 113 56 Slowest Speed 250 | 190 120 190 120 120 190 250 Overloaded Moves . | . . . . . . . Propulsion Burnouts . | . . . . . . . Robots Hopped . | . . . . . . . Potential Cave-ins . | . . . . . . . Cave-ins Triggered . | . . . . . . . Exploration Rate (%) 24 | 4 23 26 36 7 9 64 Regions Visited 6 Branch Regions 1 Pre-discovered Areas . | . . . . . . . Known Exits Taken 5 | . 1 1 1 1 1 . Unknown Exits Taken 1 | 1 . . . . . . Scrap Searched . | . . . . . . . Spaces Dug 7 | . . . . . . 7 Terrain Destroyed 58 | . . 10 . . 41 7 Melee 7 | . . . . . . 7 Projectile . | . . . . . . . AOE 51 | . . 10 . . 41 . Terrain Rammed . | . . . . . . . Walls Destroyed . | . . . . . . . Machines Disabled . | . . . . . . . Actions | -11 -10 -9 -8 -7 -6 -6 --------- Run | Yrd Mat Mat Mat Fac Fac Ext Total 2794 | 48 149 293 611 283 360 1050 Wait 238 | . 8 14 99 5 36 76 Move 2172 | 36 113 235 454 242 236 856 Hop . | . . . . . . . Pick Up 34 | 6 5 4 4 5 6 4 Fast Attach 22 | 5 3 2 1 . 3 8 Attach 21 | 1 . 2 2 4 8 4 Detach 2 | . . . . . . 2 Swap 29 | . 2 8 6 3 8 2 Drop 37 | . 4 8 5 5 10 5 Fire 146 | . 14 20 39 19 53 1 Melee 16 | . . . . . . 16 Ram . | . . . . . . . Kick 1 | . . . 1 . . . Crush . | . . . . . . . Escape Stasis 26 | . . . . . . 26 Rewire 34 | . . . . . . 34 Trap . | . . . . . . . Miscellaneous 16 | . . . . . . 16 Route ------- -11/Scrapyard -10/Materials (discovered 3 exits: *Mat x3) -9/Materials -8/Materials (discovered 2 exits: *Fac / *Sto) -7/Factory -6/Factory (discovered 2 exits: *Low / *Ext) -6/Extension History --------- Turn | Location | Event 2 | -11/Scrapyard | Met Revision 17 32 | -11/Scrapyard | Discovered new exit (range 15) 54 | -11/Scrapyard | Entered Materials 127 | -10/Materials | Identified exit to Materials 248 | -10/Materials | Entered another Materials area 248 | -9/Materials | Evolved 2 slots: Propulsion x1, Utility x1 609 | -9/Materials | Discovered new exit (range 15) 631 | -9/Materials | Identified exit to Materials 632 | -9/Materials | Entered another Materials area 632 | -8/Materials | Evolved 2 slots: Propulsion x1, Utility x1 637 | -8/Materials | Discovered new exit (range 13) 692 | -8/Materials | Identified exit to Storage 876 | -8/Materials | Build established: Mutant 1117 | -8/Materials | Repaired Imp. Heat Sink 1307 | -8/Materials | Discovered new exit (range 12) 1409 | -8/Materials | Identified exit to Factory 1411 | -8/Materials | Entered Factory 1411 | -7/Factory | Evolved 2 slots: Propulsion x1, Utility x1 1737 | -7/Factory | Discovered new exit (range 6) 1768 | -7/Factory | Identified exit to Factory 1778 | -7/Factory | Entered another Factory area 1778 | -6/Factory | Evolved 2 slots: Propulsion x1, Utility x1 1936 | -6/Factory | Build established: Scavenger-Mutant 2171 | -6/Factory | Garrison activated, responded to threat 2239 | -6/Factory | Discovered new exit (range 11) 2243 | -6/Factory | Identified exit to Lower Caves 2251 | -6/Factory | Discovered new exit (range 10) 2254 | -6/Factory | Identified exit to Extension 2255 | -6/Factory | Entered Extension 2265 | -6/Extension | Lost 17 parts (1p7n4u5w) 2303 | -6/Extension | Disrupted transfer network 2352 | -6/Extension | Spotted B-75 Beast 2353 | -6/Extension | Spotted B-75 Beast 2442 | -6/Extension | Rescued A7 2494 | -6/Extension | Rescued a captive Derelict 2529 | -6/Extension | Build established: Mutant 2534 | -6/Extension | Core integrity fell below 50% 2569 | -6/Extension | Rescued a captive Derelict 2570 | -6/Extension | Rescued a captive Derelict 2793 | -6/Extension | Rescued a captive Derelict 2855 | -6/Extension | Core integrity fell below 20% 2859 | -6/Extension | Rescued a captive Derelict 2860 | -6/Extension | Rescued a captive Derelict 2873 | -6/Extension | Rescued a captive Derelict 2880 | -6/Extension | Lost 3 parts (2n1w) 2990 | -6/Extension | Destroyed by Y-54 Guardian with Gatling Laser Last Messages --------------- 02913_ Acquired Plasma Rifle. 02928_ G-50 Soldier IFF system glitched. 02934_ G-50 Soldier system terminally corrupted. 02934_ R-10 Processor collects Corrupted Carbon-fiber Leg. 02935_ Attempting to rewire IP-9PL(g). 02937_ R-10 Processor collects Corrupted Hvy. Laser. 02937_ Attempting to rewire IP-9PL(g). 02938_ IP-9PL(g) rewired. 02941_ Attempting to rewire 7G-WZY(l). 02950_ U-05 Engineer builds a Door. 02951_ Attempting to rewire 7G-WZY(l). 02957_ Acquired Carbon-fiber Leg. 02961_ Attempting to rewire ZE-2BP(l). 02961_ ZE-2BP(l) rewired. 02963_ IP-9PL(g) destroyed. 02966_ G-50 Soldier knocked back. 02977_ Carbon-fiber Leg destroyed. 02990_ U-05 Engineer builds a Door. Map ----- +----------------------------------------------------+ | | | | | | | | | | | | | | | | | | | | | | | | | | | | | | | | | | | | | | | | | | | ?????????????????????????????????????????????????? | | ?????????????????????????????????????????????????? | | ???????????????????########??????????????????????? | | ??########??????####! ######## ""???????? | | ??#%[ ########;;; ! @/ T ???????? | | ??#=! +BB g/ Y ##### ??????? | | ??#% [ uYBB### #### "Y" #??????????????????????? | | ?#" #????# #??#! """ #??????????????????????? | | # " [[ #????# #??# #??????????????????????? | | " [ #????# #??## #####??????????????????????? | | """###/######## #???###??????????????????????????? | | % %% ??????????????????????????? | | ###"###########+#????????????????????????????????? | | # ####??????????????????????????????????????? | | # ! """#??????????????????????????????????????? | | # Y"#??????????????????????????????????????? | | # """#??????????????????????????????????????? | | # ####??????????????????????????????????????? | | # ! !#?????????????????????????????????????????? | | ########?????????????????????????????????????????? | | ?????????????????????????????????????????????????? | | ?????????????????????????????????????????????????? | | ?????????????????????????????????????????????????? | | ?????????????????????????????????????????????????? | | ?????????????????????????????????????????????????? | | ?????????????????????????????????????????????????? | | ?????????????????????????????????????????????????? | | ?????????????????????????????????????????????????? | | ?????????????????????????????????????????????????? | +----------------------------------------------------+ Best States ------------- Heat Dissipation 70 Energy Generation 18 Energy Capacity 310 Matter Stores 300 Matter Capacity 300 Sight Range 18 Terrain Scan Density 10 Armor Coverage 225 Resistance: TH 20 Evasion (%) 55 Recoil Reduction 2 Item Schematics ----------------- None Robot Schematics ------------------ None Fabricated ------------ Nothing Repaired ---------- Imp. Heat Sink | 50% | -8/Materials Alien Tech Used ----------------- None Achievements -------------- Prison Break Challenges ------------ None Game ------ Seed PlexusRainbowInitializer Manual? 0 Play Time 00:42:54 Cumulative 143.6 hours Start 2025.05.10 @ 12:00:56 End 2025.05.10 @ 12:42:07 Sessions 1 Manual Loads 0 Difficulty Rogue Special Mode None Game No. 73 Rogue 63 Adventurer 5 Explorer 5 Win Type - Total 7 Types 7/0/0/0/0/0/0/0/0/0 Lore% 40 Gallery% 57 Achievement% 52 Wizard Run 0 Options --------- Layout 2 ASCII 0 Keyboard 0 Movement Mouse Keybinds 1 Fullscreen 1 Font 20/Terminus Map View 50x44 Zoom Use 0% Tactical HUD 1 Map Filters NONE Filters SATURATION(60) Steam 1 RUN: 83f02586-dc94-4a86-aed6-5f136143bfe4